[Event "Turkish Youth Championship 2024"]
[Site "Samsun"]
[Date "2024.05.18"]
[Round "1"]
[White "Yaman, Arya"]
[Black "Topuz, Mirac Melih"]
[Result "0-1"]
[ECO "B22"]
[WhiteElo "1414"]
[BlackElo "2079"]
[Annotator "RC"]
[PlyCount "90"]
[EventDate "2024.05.18"]
[EventType "swiss"]
[EventCountry "TUR"]
[SourceTitle "playchess.com"]
[Source "ChessBase"]
[SourceQuality "1"]
[TimeControl "5400+30"]

1. e4 {[%emt 0:01:00]} c5 {[%emt 0:01:00]} 2. Nf3 {[%emt 0:00:00]} e6 {[%emt 0:00:30]} 3. d4 {[%emt 0:00:00]} cxd4 {[%emt 0:00:30]} 4. Nxd4 {[%emt 0:00:30]} Nc6 {[%emt 0:00:30]} 5. c4 {[%emt 0:00:30]} Nf6 {[%emt 0:00:30]} 6. Nc3 {[%emt 0:01:30]} Bb4 {[%emt 0:00:30]} 7. Nxc6 {[%emt 0:00:30]} bxc6 {[%emt 0:00:30]} 8. Bd3 {[%emt 0:00:30]} d5 {[%emt 0:03:30]} 9. cxd5 {[%emt 0:01:30]} exd5 {[%emt 0:00:30]} 10. exd5 {[%emt 0:02:30]} O-O {[%emt 0:00:30]} 11. O-O {[%emt 0:00:30]} cxd5 {[%emt 0:00:30]} 12. a3 {[%emt 0:02:30]} Be7 {[%emt 0:03:30]} 13. Re1 {[%emt 0:03:30]} h6 {[%emt 0:01:30]} 14. Bf4 {[%emt 0:04:30]} Bd6 {[%emt 0:09:30]} 15. Bxd6 {[%emt 0:02:30]} Qxd6 {[%emt 0:00:30]} 16. h3 {[%emt 0:01:30]} Bb7 {[%emt 0:00:30]} 17. Qb3 {[%emt 0:03:30]} Bc6 {[%emt 0:01:30]} 18. Rad1 {[%emt 0:01:30]} Rab8 {[%emt 0:01:30]} 19. Qc2 {[%emt 0:02:30]} Rfe8 {[%emt 0:13:30]} 20. b4 {[%emt 0:07:30]} Rbd8 {[%emt 0:10:30]} 21. Rc1 {[%emt 0:05:30]} Rxe1+ {[%emt 0:05:30]} 22. Rxe1 {[%emt 0:00:30]} d4 {[%emt 0:00:30]} 23. Ne4 {[%emt 0:01:30]} Bxe4 {[%emt 0:00:00]} 24. Bxe4 {[%emt 0:00:30]} d3 {[%emt 0:01:00]} 25. Qd2 {[%emt 0:01:30]} Re8 {[%emt 0:05:30]} 26. Bf3 {[%emt 0:01:30]} Rxe1+ {[%emt 0:02:30]} 27. Qxe1 {[%emt 0:00:30]} d2 {[%emt 0:00:30]} 28. Qd1 {[%emt 0:00:30]} Qd3 {[%emt 0:00:30]} 29. Qe2 {[%emt 0:05:30]} Qxe2 {[%emt 0:03:30]} 30. Bxe2 {[%emt 0:00:30]} Ne4 {[%emt 0:00:00]} 31. Kf1 {[%emt 0:01:30]} Nc3 {[%emt 0:00:00]} 32. a4 {[%emt 0:01:30]} Nxa4 {[%emt 0:00:30]} 33. b5 {[%emt 0:02:30]} Nc3 {[%emt 0:00:00]} 34. f3 {[%emt 0:00:30]} d1=Q+ {[%emt 0:00:00]} 35. Bxd1 {[%emt 0:00:30]} Nxd1 {[%emt 0:00:00]} 36. Ke1 {[%emt 0:00:00]} Nc3 {[%emt 0:00:00]} 37. Kd2 {[%emt 0:00:00]} Nxb5 {[%emt 0:00:00]} 38. Kc2 {[%emt 0:00:30]} a5 {[%emt 0:00:00]} 39. Kb3 {[%emt 0:00:00]} Nd4+ {[%emt 0:00:00]} 40. Ka4 {[%emt 0:01:00]} Nc6 {[%emt 0:00:00]} 41. Kb5 {[%emt 0:00:00]} f5 {[%emt 0:00:30]} 42. f4 {[%emt 0:00:00]} Kf7 {[%emt 0:00:00]} 43. g3 {[%emt 0:00:30]} g5 {[%emt 0:00:00]} 44. Ka4 {[%emt 0:00:30]} h5 {[%emt 0:00:30]} 45. fxg5 {[%emt 0:01:30]} h4 {[%emt 0:00:00]} 0-1

[Event "Turkish Youth Championship 2024"]
[Site "Samsun"]
[Date "2024.05.19"]
[Round "2"]
[White "Topuz, Mirac Melih"]
[Black "Toptal, Uygar Altan"]
[Result "1-0"]
[ECO "A84"]
[WhiteElo "2079"]
[BlackElo "1679"]
[Annotator "RC"]
[PlyCount "38"]
[EventDate "2024.05.18"]
[EventType "swiss"]
[EventCountry "TUR"]
[SourceTitle "playchess.com"]
[Source "ChessBase"]
[SourceQuality "1"]
[TimeControl "5400+30"]

1. d4 {[%emt 0:01:00]} d5 {[%emt 0:01:00]} 2. c4 {[%emt 0:00:30]} c6 {[%emt 0:00:00]} 3. Nf3 {[%emt 0:00:00]} e6 {[%emt 0:00:00]} 4. Qc2 {[%emt 0:01:00]} f5 {[%emt 0:00:30]} 5. Bf4 {[%emt 0:03:30]} Nf6 {[%emt 0:02:30]} 6. Nbd2 {[%emt 0:01:30]} Be7 {[%emt 0:06:30]} 7. e3 {[%emt 0:11:30]} O-O {[%emt 0:02:30]} 8. Be2 {[%emt 0:00:30]} Ne4 {[%emt 0:03:30]} 9. h4 {[%emt 0:18:30]} Nd7 {[%emt 0:06:30]} 10. Nxe4 {[%emt 0:05:30]} fxe4 {[%emt 0:15:30]} 11. Nd2 {[%emt 0:00:30]} c5 {[%emt 0:20:30]} 12. dxc5 {[%emt 0:22:30]} Nxc5 {[%emt 0:04:30]} 13. Bg3 {[%emt 0:10:30]} Qb6 {[%emt 0:04:30]} 14. O-O {[%emt 0:02:33]} Bd7 {[%emt 0:04:30]} 15. Rfd1 {[%emt 0:03:39]} Bf6 {[%emt 0:04:30]} 16. Rab1 {[%emt 0:01:13]} Rfd8 {[%emt 0:01:30]} 17. b4 {[%emt 0:01:44]} Na4 {[%emt 0:00:30]} 18. c5 {[%emt 0:00:33]} Rac8 {[%emt 0:00:30]} 19. Nc4 {[%emt 0:06:00]} Nxc5 {[%emt 0:00:52]} 1-0

[Event "Turkish Youth Championship 2024"]
[Site "Samsun"]
[Date "2024.05.19"]
[Round "2"]
[White "Danaci, Ege"]
[Black "Bilgi, Ali Erdem"]
[Result "1-0"]
[ECO "A41"]
[WhiteElo "2031"]
[BlackElo "1642"]
[Annotator "RC"]
[PlyCount "83"]
[EventDate "2024.05.18"]
[EventType "swiss"]
[EventCountry "TUR"]
[SourceTitle "playchess.com"]
[Source "ChessBase"]
[SourceQuality "1"]
[TimeControl "5400+30"]

1. d4 {[%emt 0:01:00]} d6 {[%emt 0:01:00]} 2. c4 {[%emt 0:00:30]} e5 {[%emt 0:00:00]} 3. d5 {[%emt 0:00:30]} g6 {[%emt 0:00:00]} 4. e4 {[%emt 0:00:30]} a5 {[%emt 0:00:30]} 5. Nc3 {[%emt 0:00:30]} Bd7 {[%emt 0:00:00]} 6. Bd3 {[%emt 0:02:30]} Na6 {[%emt 0:00:00]} 7. Nge2 {[%emt 0:00:30]} Bh6 {[%emt 0:00:30]} 8. O-O {[%emt 0:04:30]} Bxc1 {[%emt 0:00:30]} 9. Rxc1 {[%emt 0:00:30]} Nf6 {[%emt 0:01:30]} 10. a3 {[%emt 0:03:30]} Qe7 {[%emt 0:04:30]} 11. Rb1 {[%emt 0:01:30]} O-O {[%emt 0:05:30]} 12. b4 {[%emt 0:00:30]} axb4 {[%emt 0:05:30]} 13. axb4 {[%emt 0:00:30]} Nh5 {[%emt 0:00:00]} 14. Qd2 {[%emt 0:03:30]} Kh8 {[%emt 0:03:00]} 15. Nd1 {[%emt 0:06:30]} f5 {[%emt 0:00:30]} 16. exf5 {[%emt 0:01:30]} gxf5 {[%emt 0:01:30]} 17. f4 {[%emt 0:00:30]} e4 {[%emt 0:00:30]} 18. Bc2 {[%emt 0:01:30]} Qg7 {[%emt 0:03:30]} 19. Ne3 {[%emt 0:01:30]} Rae8 {[%emt 0:06:30]} 20. Nd4 {[%emt 0:00:30]} Qf6 {[%emt 0:03:30]} 21. Bd1 {[%emt 0:01:30]} Qg6 {[%emt 0:01:30]} 22. Bxh5 {[%emt 0:01:30]} Qxh5 {[%emt 0:00:30]} 23. Qc3 {[%emt 0:01:30]} Kg8 {[%emt 0:02:30]} 24. c5 {[%emt 0:00:30]} Qf7 {[%emt 0:04:30]} 25. c6 {[%emt 0:07:30]} bxc6 {[%emt 0:01:30]} 26. dxc6 {[%emt 0:00:30]} Be6 {[%emt 0:00:00]} 27. Ra1 {[%emt 0:00:30]} Nb8 {[%emt 0:02:00]} 28. Ra7 {[%emt 0:02:30]} h5 {[%emt 0:06:30]} 29. Rfa1 {[%emt 0:00:30]} Rc8 {[%emt 0:04:30]} 30. R1a5 {[%emt 0:01:30]} Qg7 {[%emt 0:01:30]} 31. Qd2 {[%emt 0:01:30]} Qg6 {[%emt 0:01:30]} 32. b5 {[%emt 0:00:30]} Rf7 {[%emt 0:03:30]} 33. Ra3 {[%emt 0:03:30]} Rff8 {[%emt 0:02:30]} 34. Nxe6 {[%emt 0:01:30]} Qxe6 {[%emt 0:00:00]} 35. Nd5 {[%emt 0:00:30]} Rf7 {[%emt 0:02:00]} 36. Rg3+ {[%emt 0:00:00]} Kh7 {[%emt 0:00:00]} 37. Qe2 {[%emt 0:02:00]} Kh8 {[%emt 0:08:00]} 38. Qxh5+ {[%emt 0:00:30]} Rh7 {[%emt 0:00:30]} 39. Qg5 {[%emt 0:00:00]} e3 {[%emt 0:15:18]} 40. Rxc7 {[%emt 0:01:00]} Rf8 {[%emt 0:10:57]} 41. Rxh7+ {[%emt 0:00:30]} Kxh7 {[%emt 0:00:30]} 42. Qg7# 1-0

[Event "Turkish Youth Championship 2024"]
[Site "Samsun"]
[Date "2024.05.19"]
[Round "2"]
[White "Buyuk, Eymen Eren"]
[Black "Cecen, Kuay Kam"]
[Result "1-0"]
[ECO "A40"]
[WhiteElo "1999"]
[BlackElo "1642"]
[Annotator "RC"]
[PlyCount "115"]
[EventDate "2024.05.18"]
[EventType "swiss"]
[EventCountry "TUR"]
[SourceTitle "playchess.com"]
[Source "ChessBase"]
[SourceQuality "1"]
[TimeControl "5400+30"]

1. d4 {[%emt 0:01:00]} c6 {[%emt 0:01:00]} 2. c4 {[%emt 0:00:30]} b5 {[%emt 0:00:00]} 3. e3 {[%emt 0:00:00]} bxc4 {[%emt 0:05:00]} 4. Bxc4 {[%emt 0:00:00]} Ba6 {[%emt 0:00:30]} 5. Bxa6 {[%emt 0:01:30]} Qa5+ {[%emt 0:01:30]} 6. Bd2 {[%emt 0:00:30]} Qxa6 {[%emt 0:00:30]} 7. Ne2 {[%emt 0:00:00]} g6 {[%emt 0:01:30]} 8. O-O {[%emt 0:00:00]} Bg7 {[%emt 0:00:30]} 9. Nbc3 {[%emt 0:01:30]} Nf6 {[%emt 0:09:30]} 10. b4 {[%emt 0:02:30]} Qb7 {[%emt 0:10:30]} 11. a4 {[%emt 0:02:30]} O-O {[%emt 0:08:30]} 12. Qc2 {[%emt 0:00:30]} Na6 {[%emt 0:04:30]} 13. Rfb1 {[%emt 0:00:30]} Nc7 {[%emt 0:05:30]} 14. Nc1 {[%emt 0:03:30]} Ncd5 {[%emt 0:05:30]} 15. Nxd5 {[%emt 0:03:30]} Nxd5 {[%emt 0:01:30]} 16. e4 {[%emt 0:03:30]} Nc7 {[%emt 0:03:30]} 17. Nb3 {[%emt 0:00:30]} Ne6 {[%emt 0:01:30]} 18. Bc3 {[%emt 0:00:30]} f5 {[%emt 0:07:30]} 19. e5 {[%emt 0:09:30]} Qc7 {[%emt 0:03:30]} 20. Re1 {[%emt 0:02:30]} Rab8 {[%emt 0:05:30]} 21. Qd2 {[%emt 0:01:30]} Qb7 {[%emt 0:06:17]} 22. Rad1 {[%emt 0:04:30]} Nc7 {[%emt 0:01:30]} 23. Nc5 {[%emt 0:03:30]} Qc8 {[%emt 0:00:20]} 24. Qa2+ {[%emt 0:01:30]} e6 {[%emt 0:00:17]} 25. Bd2 {[%emt 0:01:30]} h6 {[%emt 0:05:12]} 26. Rb1 {[%emt 0:01:30]} a6 {[%emt 0:00:39]} 27. Qc4 {[%emt 0:00:00]} Rb6 {[%emt 0:02:02]} 28. Rb3 {[%emt 0:02:00]} Kh7 {[%emt 0:05:41]} 29. Rh3 {[%emt 0:02:30]} Rf7 {[%emt 0:03:15]} 30. b5 {[%emt 0:10:30]} cxb5 {[%emt 0:01:47]} 31. Qc1 {[%emt 0:00:30]} h5 {[%emt 0:00:27]} 32. axb5 {[%emt 0:00:00]} Nxb5 {[%emt 0:00:51]} 33. Nxe6 {[%emt 0:01:00]} Qxc1 {[%emt 0:01:03]} 34. Ng5+ {[%emt 0:00:30]} Kg8 {[%emt 0:00:00]} 35. Bxc1 {[%emt 0:00:00]} Rf8 {[%emt 0:00:15]} 36. Rb3 {[%emt 0:07:00]} Rbb8 {[%emt 0:00:45]} 37. Nf3 {[%emt 0:01:30]} Nc7 {[%emt 0:00:32]} 38. Ra3 {[%emt 0:00:30]} Rb6 {[%emt 0:00:27]} 39. Bd2 {[%emt 0:00:30]} Nb5 {[%emt 0:00:29]} 40. Rb3 {[%emt 0:01:30]} Rbb8 {[%emt 0:00:35]} 41. Ra1 {[%emt 0:02:30]} Ra8 {[%emt 0:00:21]} 42. h4 {[%emt 0:01:30]} Rfc8 {[%emt 0:00:32]} 43. Bf4 {[%emt 0:00:30]} Kf7 {[%emt 0:00:36]} 44. Kh2 {[%emt 0:02:30]} Ke6 {[%emt 0:00:31]} 45. Be3 {[%emt 0:02:30]} Kf7 {[%emt 0:00:32]} 46. d5 {[%emt 0:01:30]} Re8 {[%emt 0:00:27]} 47. Kg3 {[%emt 0:01:30]} Nc7 {[%emt 0:00:29]} 48. Rb7 {[%emt 0:00:00]} Nxd5 {[%emt 0:00:28]} 49. Rxd7+ {[%emt 0:01:00]} Ne7 {[%emt 0:00:09]} 50. Bc5 {[%emt 0:00:00]} Bh8 {[%emt 0:00:57]} 51. Rb1 {[%emt 0:02:00]} Rad8 {[%emt 0:00:27]} 52. Ng5+ {[%emt 0:00:30]} Kg8 {[%emt 0:00:33]} 53. Rxd8 {[%emt 0:00:30]} Rxd8 {[%emt 0:00:24]} 54. Bxe7 {[%emt 0:00:30]} Bxe5+ {[%emt 0:00:11]} 55. f4 {[%emt 0:00:00]} Rd3+ {[%emt 0:00:10]} 56. Nf3 {[%emt 0:00:00]} Bc7 {[%emt 0:01:09]} 57. Rb7 {[%emt 0:00:30]} Rd7 {[%emt 0:00:08]} 58. Bd6 {[%emt 0:00:00]} 1-0

[Event "Turkish Youth Championship 2024"]
[Site "Samsun"]
[Date "2024.05.19"]
[Round "2"]
[White "Ilgaz, Yusuf Kerem"]
[Black "Duygulu, Ugur"]
[Result "1-0"]
[ECO "B10"]
[WhiteElo "1964"]
[BlackElo "1585"]
[Annotator "RC"]
[PlyCount "55"]
[EventDate "2024.05.18"]
[EventType "swiss"]
[EventCountry "TUR"]
[SourceTitle "playchess.com"]
[Source "ChessBase"]
[SourceQuality "1"]
[TimeControl "5400+30"]

1. e4 {[%emt 0:01:00]} c6 {[%emt 0:01:00]} 2. d3 {[%emt 0:00:30]} d5 {[%emt 0:00:30]} 3. Nf3 {[%emt 0:00:00]} g6 {[%emt 0:00:30]} 4. e5 {[%emt 0:00:00]} Bg7 {[%emt 0:00:30]} 5. d4 {[%emt 0:00:00]} Bg4 {[%emt 0:00:30]} 6. Nbd2 {[%emt 0:00:00]} e6 {[%emt 0:00:30]} 7. h3 {[%emt 0:01:30]} Bxf3 {[%emt 0:03:30]} 8. Nxf3 {[%emt 0:00:00]} Nd7 {[%emt 0:01:30]} 9. h4 {[%emt 0:03:00]} h5 {[%emt 0:16:30]} 10. Bd3 {[%emt 0:02:30]} c5 {[%emt 0:05:30]} 11. c3 {[%emt 0:00:30]} cxd4 {[%emt 0:00:30]} 12. cxd4 {[%emt 0:01:30]} Ne7 {[%emt 0:00:30]} 13. O-O {[%emt 0:02:30]} Qb6 {[%emt 0:06:30]} 14. Be3 {[%emt 0:11:30]} Nf5 {[%emt 0:06:30]} 15. Bxf5 {[%emt 0:01:30]} gxf5 {[%emt 0:00:30]} 16. Qd2 {[%emt 0:07:30]} O-O-O {[%emt 0:23:30]} 17. a4 {[%emt 0:03:30]} a6 {[%emt 0:03:30]} 18. Ng5 {[%emt 0:16:30]} Rdf8 {[%emt 0:04:30]} 19. Qd3 {[%emt 0:03:30]} Bh6 {[%emt 0:08:06]} 20. Ra3 {[%emt 0:03:30]} Nb8 {[%emt 0:02:34]} 21. b4 {[%emt 0:05:30]} Bxg5 {[%emt 0:02:45]} 22. Bxg5 {[%emt 0:02:30]} Kd7 {[%emt 0:00:24]} 23. b5 {[%emt 0:01:30]} Rc8 {[%emt 0:01:52]} 24. Rb1 {[%emt 0:04:30]} a5 {[%emt 0:01:59]} 25. Rc3 {[%emt 0:00:30]} Rxc3 {[%emt 0:00:16]} 26. Qxc3 {[%emt 0:00:30]} Rc8 {[%emt 0:00:15]} 27. Qa3 {[%emt 0:00:30]} Re8 {[%emt 0:02:21]} 28. Rc1 {[%emt 0:00:00]} 1-0

[Event "Turkish Youth Championship 2024"]
[Site "Samsun"]
[Date "2024.05.19"]
[Round "2"]
[White "Dogan, Umut Anil"]
[Black "Incecinar, Abdullah Mete"]
[Result "1/2-1/2"]
[ECO "A37"]
[WhiteElo "1959"]
[BlackElo "1643"]
[Annotator "RC"]
[PlyCount "95"]
[EventDate "2024.05.18"]
[EventType "swiss"]
[EventCountry "TUR"]
[SourceTitle "playchess.com"]
[Source "ChessBase"]
[SourceQuality "1"]
[TimeControl "5400+30"]

1. c4 {[%emt 0:01:00]} c5 {[%emt 0:01:00]} 2. Nc3 {[%emt 0:00:00]} Nc6 {[%emt 0:00:00]} 3. g3 {[%emt 0:01:00]} g6 {[%emt 0:00:00]} 4. Bg2 {[%emt 0:00:30]} Bg7 {[%emt 0:00:00]} 5. Nf3 {[%emt 0:01:30]} d6 {[%emt 0:01:00]} 6. O-O {[%emt 0:00:30]} e6 {[%emt 0:00:00]} 7. a3 {[%emt 0:00:30]} Nge7 {[%emt 0:00:00]} 8. b4 {[%emt 0:00:30]} cxb4 {[%emt 0:05:30]} 9. axb4 {[%emt 0:00:30]} Nxb4 {[%emt 0:00:30]} 10. Ba3 {[%emt 0:00:00]} Nbc6 {[%emt 0:11:30]} 11. Nb5 {[%emt 0:02:00]} Nf5 {[%emt 0:06:30]} 12. e4 {[%emt 0:00:30]} a6 {[%emt 0:04:30]} 13. exf5 {[%emt 0:01:30]} axb5 {[%emt 0:00:30]} 14. Bb2 {[%emt 0:02:30]} Rxa1 {[%emt 0:01:30]} 15. Qxa1 {[%emt 0:00:00]} e5 {[%emt 0:02:30]} 16. cxb5 {[%emt 0:00:00]} Ne7 {[%emt 0:00:30]} 17. d4 {[%emt 0:09:30]} e4 {[%emt 0:04:30]} 18. d5 {[%emt 0:00:30]} Bxb2 {[%emt 0:00:30]} 19. Qxb2 {[%emt 0:00:30]} O-O {[%emt 0:00:30]} 20. Ng5 {[%emt 0:02:30]} gxf5 {[%emt 0:01:30]} 21. Qd4 {[%emt 0:05:30]} Ng6 {[%emt 0:08:30]} 22. h4 {[%emt 0:00:30]} h6 {[%emt 0:02:30]} 23. Nh3 {[%emt 0:00:30]} Bd7 {[%emt 0:07:30]} 24. b6 {[%emt 0:00:30]} Qe7 {[%emt 0:03:30]} 25. Qe3 {[%emt 0:01:30]} Kh7 {[%emt 0:02:30]} 26. f3 {[%emt 0:09:30]} Qe5 {[%emt 0:11:30]} 27. h5 {[%emt 0:13:30]} Ne7 {[%emt 0:00:30]} 28. fxe4 {[%emt 0:01:30]} Nxd5 {[%emt 0:02:30]} 29. Qf3 {[%emt 0:08:30]} Nxb6 {[%emt 0:03:30]} 30. exf5 {[%emt 0:01:30]} Bc6 {[%emt 0:00:30]} 31. Qf2 {[%emt 0:04:30]} Bxg2 {[%emt 0:00:57]} 32. Kxg2 {[%emt 0:00:30]} Nc4 {[%emt 0:05:21]} 33. Re1 {[%emt 0:01:30]} Qd5+ {[%emt 0:00:45]} 34. Qf3 {[%emt 0:04:30]} Qxf3+ {[%emt 0:02:13]} 35. Kxf3 {[%emt 0:00:00]} Ne5+ {[%emt 0:00:19]} 36. Ke4 {[%emt 0:03:00]} Rg8 {[%emt 0:09:45]} 37. Rg1 {[%emt 0:00:30]} b5 {[%emt 0:00:40]} 38. Nf4 {[%emt 0:03:30]} b4 {[%emt 0:01:03]} 39. Rb1 {[%emt 0:01:30]} Rb8 {[%emt 0:01:07]} 40. Kd4 {[%emt 0:00:30]} Nf3+ {[%emt 0:01:36]} 41. Ke3 {[%emt 0:01:30]} Ne5 {[%emt 0:00:22]} 42. Kd4 {[%emt 0:01:30]} Rb5 {[%emt 0:00:36]} 43. f6 {[%emt 0:01:02]} Nc6+ {[%emt 0:00:50]} 44. Kd3 {[%emt 0:00:57]} Rc5 {[%emt 0:00:39]} 45. Rb3 {[%emt 0:00:48]} Rb5 {[%emt 0:00:42]} 46. Kc4 {[%emt 0:01:12]} Rc5+ {[%emt 0:00:20]} 47. Kd3 {[%emt 0:00:46]} Rg5 {[%emt 0:00:30]} 48. Kc4 {[%emt 0:00:30]} 1/2-1/2

[Event "Turkish Youth Championship 2024"]
[Site "Samsun"]
[Date "2024.05.19"]
[Round "2"]
[White "Ozgun, Yigit Deniz"]
[Black "Kozan, Hayreddin"]
[Result "1-0"]
[ECO "A06"]
[WhiteElo "1917"]
[BlackElo "1600"]
[Annotator "RC"]
[PlyCount "67"]
[EventDate "2024.05.18"]
[EventType "swiss"]
[EventCountry "TUR"]
[SourceTitle "playchess.com"]
[Source "ChessBase"]
[SourceQuality "1"]
[TimeControl "5400+30"]

1. Nf3 {[%emt 0:02:00]} d5 {[%emt 0:01:00]} 2. b3 {[%emt 0:00:30]} c5 {[%emt 0:00:00]} 3. e3 {[%emt 0:00:00]} f6 {[%emt 0:00:00]} 4. d4 {[%emt 0:01:00]} cxd4 {[%emt 0:00:00]} 5. exd4 {[%emt 0:00:30]} Nc6 {[%emt 0:00:00]} 6. Bb2 {[%emt 0:00:30]} Bg4 {[%emt 0:01:30]} 7. Be2 {[%emt 0:00:30]} e6 {[%emt 0:00:30]} 8. O-O {[%emt 0:00:00]} Bd6 {[%emt 0:01:30]} 9. h3 {[%emt 0:01:00]} Bh5 {[%emt 0:00:30]} 10. Re1 {[%emt 0:00:00]} Nge7 {[%emt 0:01:30]} 11. c4 {[%emt 0:00:00]} O-O {[%emt 0:07:30]} 12. Nc3 {[%emt 0:02:30]} Qd7 {[%emt 0:06:30]} 13. a3 {[%emt 0:03:30]} a6 {[%emt 0:08:30]} 14. b4 {[%emt 0:00:30]} Bxf3 {[%emt 0:11:30]} 15. Bxf3 {[%emt 0:00:00]} dxc4 {[%emt 0:00:30]} 16. d5 {[%emt 0:01:00]} Ne5 {[%emt 0:20:30]} 17. dxe6 {[%emt 0:00:30]} Qxe6 {[%emt 0:00:00]} 18. Bxb7 {[%emt 0:00:00]} Ra7 {[%emt 0:00:00]} 19. Be4 {[%emt 0:00:00]} Rd7 {[%emt 0:09:30]} 20. f4 {[%emt 0:10:30]} f5 {[%emt 0:06:30]} 21. Bc2 {[%emt 0:03:30]} Bc5+ {[%emt 0:06:08]} 22. bxc5 {[%emt 0:00:30]} Rxd1 {[%emt 0:00:00]} 23. Raxd1 {[%emt 0:00:00]} Nf3+ {[%emt 0:00:26]} 24. gxf3 {[%emt 0:00:00]} Qc6 {[%emt 0:00:30]} 25. Kh2 {[%emt 0:03:30]} Qxc5 {[%emt 0:04:21]} 26. Rd2 {[%emt 0:01:30]} Ng6 {[%emt 0:05:27]} 27. Nd5 {[%emt 0:02:30]} Nxf4 {[%emt 0:02:09]} 28. Nxf4 {[%emt 0:02:30]} c3 {[%emt 0:00:07]} 29. Bb3+ {[%emt 0:09:30]} Kh8 {[%emt 0:00:02]} 30. Ne6 {[%emt 0:00:00]} Qb6 {[%emt 0:06:16]} 31. Bxc3 {[%emt 0:00:00]} Qxb3 {[%emt 0:00:07]} 32. Bxg7+ {[%emt 0:00:30]} Kg8 {[%emt 0:00:04]} 33. Bxf8 {[%emt 0:00:30]} Qxf3 {[%emt 0:00:33]} 34. Rg2+ {[%emt 0:00:00]} 1-0

[Event "Turkish Youth Championship 2024"]
[Site "Samsun"]
[Date "2024.05.19"]
[Round "2"]
[White "Kilic, Nurullah"]
[Black "Kesici, Eyup Can"]
[Result "1-0"]
[ECO "B01"]
[WhiteElo "1893"]
[BlackElo "1539"]
[Annotator "NA RC"]
[PlyCount "53"]
[EventDate "2024.05.18"]
[EventType "swiss"]
[EventCountry "TUR"]
[SourceTitle "playchess.com"]
[Source "ChessBase"]
[SourceQuality "1"]
[TimeControl "5400+30"]

1. e4 {[%emt 0:01:00]} d5 {[%emt 0:01:00]} 2. exd5 {[%emt 0:01:30]} Qxd5 {[%emt 0:00:30]} 3. Nc3 {[%emt 0:00:30]} Qa5 {[%emt 0:00:30]} 4. d4 {[%emt 0:02:30]} Nf6 {[%emt 0:00:00]} 5. Bc4 {[%emt 0:02:30]} c6 {[%emt 0:00:00]} 6. Bd2 {[%emt 0:00:30]} Bf5 {[%emt 0:06:30]} 7. Nd5 {[%emt 0:08:30]} Qd8 {[%emt 0:00:30]} 8. Nxf6+ {[%emt 0:00:30]} gxf6 {[%emt 0:00:00]} 9. Nf3 {[%emt 0:01:30]} e6 {[%emt 0:05:00]} 10. c3 {[%emt 0:02:30] 10.0-0 gains popularity.} Nd7 {[%emt 0:04:30]} 11. Nh4 {[%emt 0:05:30] B01: Scandinavian Defence.} Be4 {[%emt 0:00:30]} 12. Qe2 {[%emt 0:01:30]} f5 {[%emt 0:00:30]} 13. Nf3 {[%emt 0:01:30]} Rg8 {[%emt 0:07:30]} 14. g3 {[%emt 0:08:30]} Nb6 $146 {[%emt 0:03:30]} ({Predecessor:} 14... Nf6 15. O-O-O Qa5 16. Rhe1 Bxf3 17. Qxf3 O-O-O 18. Kb1 Nd5 19. Qh5 Rg7 20. Bb3 Nf6 {1-0 Teuschler,H (2042)-Schieder,J (2069) Steyr Landesliga 1112 2011 (3.4)}) 15. Bb3 {[%emt 0:04:30]} a5 {[%emt 0:03:30]} 16. a3 {[%emt 0:01:30]} a4 {[%emt 0:01:30]} 17. Ba2 {[%emt 0:00:00]} Bd5 {[%emt 0:07:30]} 18. c4 {[%emt 0:01:00]} Bxf3 {[%emt 0:02:30]} 19. Qxf3 {[%emt 0:00:30]} Qxd4 {[%emt 0:04:30]} 20. Be3 {[%emt 0:00:30]} Qxb2 {[%emt 0:00:30]} 21. O-O {[%emt 0:00:30]} Nd7 {[%emt 0:01:30]} 22. Rfd1 {[%emt 0:01:30]} Bxa3 $4 {[%emt 0:09:30]} ({But not} 22... Qxa3 23. c5 Qb4 (23... Nxc5 $2 {perishes.} 24. Bd5 $18) (23... Bxc5 $2 {is the wrong capture.} 24. Bxe6 fxe6 25. Rxa3 $18) 24. Qe2 $17) (22... O-O-O $19 {and life is good for Black.} 23. Bd4 Qxa3) 23. Bd4 {[%emt 0:04:30]} Qb4 {[%emt 0:01:30]} 24. Rab1 {[%emt 0:00:00]} Qf8 {[%emt 0:13:30]} (24... Qa5 $142 25. Rxb7 (25. Qxa3 Qc7 $18) 25... Qa6) 25. Rxb7 {[%emt 0:00:00]} Rd8 {[%emt 0:07:49]} 26. Bb6 {[%emt 0:01:30]} Nxb6 {[%emt 0:03:44]} 27. Qxc6+ {[%emt 0:00:30]} 1-0

[Event "Turkish Youth Championship 2024"]
[Site "Samsun"]
[Date "2024.05.19"]
[Round "2"]
[White "Ekinci, Berkay"]
[Black "Engel, Ecrin Tuana"]
[Result "1-0"]
[ECO "A68"]
[WhiteElo "1891"]
[BlackElo "1575"]
[Annotator "NA RC"]
[PlyCount "45"]
[EventDate "2024.05.18"]
[EventType "swiss"]
[EventCountry "TUR"]
[SourceTitle "playchess.com"]
[Source "ChessBase"]
[SourceQuality "1"]
[TimeControl "5400+30"]

1. d4 {[%emt 0:01:00]} Nf6 {[%emt 0:01:00]} 2. c4 {[%emt 0:00:30]} c5 {[%emt 0:00:00]} 3. d5 {[%emt 0:00:30]} e6 {[%emt 0:00:00]} 4. Nc3 {[%emt 0:00:30]} exd5 {[%emt 0:00:30]} 5. cxd5 {[%emt 0:00:00]} d6 {[%emt 0:00:00]} 6. e4 {[%emt 0:01:00]} g6 {[%emt 0:00:00]} 7. f4 {[%emt 0:01:30]} Bg7 {[%emt 0:06:30]} 8. Nf3 {[%emt 0:00:30]} O-O {[%emt 0:02:30]} 9. Bd3 {[%emt 0:02:30]} a6 {[%emt 0:03:30]} 10. a4 {[%emt 0:00:30]} Nbd7 {[%emt 0:00:00]} 11. O-O {[%emt 0:00:30]} Qc7 {[%emt 0:02:00]} 12. Bc2 {[%emt 0:09:30] A68: Modern Benoni: Four Pawns Attack without 9...Re8.} Rb8 {[%emt 0:06:30]} 13. e5 {[%emt 0:07:30]} Ne8 {[%emt 0:05:30]} 14. e6 {[%emt 0:00:30]} Ndf6 {[%emt 0:02:30]} 15. f5 {[%emt 0:13:30]} gxf5 {[%emt 0:09:30]} 16. Bxf5 {[%emt 0:00:30]} fxe6 {[%emt 0:00:30]} 17. dxe6 {[%emt 0:00:30]} b5 {[%emt 0:01:30]} 18. axb5 {[%emt 0:05:30]} axb5 {[%emt 0:00:30]} 19. Ng5 {[%emt 0:04:30]} b4 $18 {[%emt 0:18:30]} (19... Bb7 $142 20. Qe1 (20. Nxb5 Qe7 $18) 20... Qe7) 20. Nd5 {[%emt 0:02:30]} Nxd5 {[%emt 0:02:30]} 21. Bxh7+ {[%emt 0:00:30]} Kh8 {[%emt 0:00:00]} 22. Rxf8+ {[%emt 0:01:30]} Bxf8 {[%emt 0:00:00]} 23. Nf7+ {[%emt 0:01:30]} 1-0